[Event "EUCC Open Blitz 2024"]
[Site "Miskolc"]
[Date "2024.07.13"]
[Round "2.1"]
[White "Gharibyan, Mamikon"]
[Black "Manafov, Vugar"]
[Result "1/2-1/2"]
[ECO "A46"]
[WhiteElo "2492"]
[BlackElo "2430"]
[PlyCount "125"]
[EventDate "2024.07.08"]
[EventType "team-tourn"]
[EventCountry "HUN"]
[TimeControl "1500+10"]

1. d4 {[%emt 0:22:17]} Nf6 {[%emt 0:22:16]} 2. Nf3 {[%emt 0:00:10]} e6 {[%emt 0:00:10]} 3. Bf4 {[%emt 0:00:10]} Bd6 {[%emt 0:00:09]} 4. Bg5 {[%emt 0:00:19]} Be7 {[%emt 0:00:10]} 5. c3 {[%emt 0:00:12]} h6 {[%emt 0:00:10]} 6. Bh4 {[%emt 0:00:10]} O-O {[%emt 0:00:10]} 7. Nbd2 {[%emt 0:00:10]} d6 {[%emt 0:00:09]} 8. e3 {[%emt 0:00:15]} Nbd7 {[%emt 0:00:10]} 9. h3 {[%emt 0:00:13]} e5 {[%emt 0:00:17]} 10. Qc2 {[%emt 0:00:23]} Re8 {[%emt 0:00:28]} 11. a4 {[%emt 0:00:28]} a5 {[%emt 0:00:11]} 12. Rd1 {[%emt 0:00:28]} Bf8 {[%emt 0:00:18]} 13. dxe5 {[%emt 0:00:34]} dxe5 {[%emt 0:00:09]} 14. Nc4 {[%emt 0:00:27]} Qe7 {[%emt 0:00:43]} 15. Be2 {[%emt 0:00:09]} b6 {[%emt 0:00:20]} 16. Bg3 {[%emt 0:00:30]} Qc5 {[%emt 0:00:09]} 17. O-O {[%emt 0:00:17]} Ba6 {[%emt 0:00:09]} 18. Nfd2 {[%emt 0:00:17]} Rad8 {[%emt 0:00:51]} 19. Rfe1 {[%emt 0:00:10]} Qe7 {[%emt 0:00:17]} 20. Nb3 {[%emt 0:00:28]} Qe6 {[%emt 0:00:10]} 21. Ncd2 {[%emt 0:00:18]} Bxe2 {[%emt 0:00:12]} 22. Rxe2 {[%emt 0:00:09]} Nc5 {[%emt 0:00:26]} 23. Nxc5 {[%emt 0:00:10]} Bxc5 {[%emt 0:00:08]} 24. Ree1 {[%emt 0:00:09]} Bf8 {[%emt 0:00:45]} 25. b3 {[%emt 0:00:14]} Nd7 {[%emt 0:00:16]} 26. Nc4 {[%emt 0:00:13]} f6 {[%emt 0:00:09]} 27. e4 {[%emt 0:00:16]} Nc5 {[%emt 0:00:10]} 28. f3 {[%emt 0:00:08]} Qf7 {[%emt 0:00:14]} 29. Bf2 Ne6 30. Ne3 {[%emt 0:00:22]} Bc5 {[%emt 0:00:18]} 31. Nf5 {[%emt 0:00:10]} Bxf2+ {[%emt 0:00:10]} 32. Qxf2 {[%emt 0:00:09]} Kh7 {[%emt 0:00:09]} 33. Kh2 {[%emt 0:00:10]} Nf4 {[%emt 0:00:10]} 34. Qc2 {[%emt 0:00:09]} Qg8 {[%emt 0:00:13]} 35. Ne3 {[%emt 0:00:11]} Rxd1 {[%emt 0:00:10]} 36. Rxd1 {[%emt 0:00:09]} Rd8 {[%emt 0:00:08]} 37. c4 {[%emt 0:00:12]} Qf8 {[%emt 0:00:12]} 38. Nd5 {[%emt 0:00:10]} Qd6 {[%emt 0:00:11]} 39. Nc3 {[%emt 0:00:10]} Qe7 {[%emt 0:00:09]} 40. Nd5 {[%emt 0:00:11]} Qd6 {[%emt 0:00:08]} 41. Ne3 {[%emt 0:00:09]} Qf8 {[%emt 0:00:10]} 42. Qb1 {[%emt 0:00:10]} Kh8 {[%emt 0:00:11]} 43. h4 {[%emt 0:00:09]} Rd4 {[%emt 0:00:08]} 44. Nf5 {[%emt 0:00:10]} Rd8 {[%emt 0:00:10]} 45. Ne3 {[%emt 0:00:11]} Rd4 {[%emt 0:00:09]} 46. Nf5 Rd8 47. Qc2 {[%emt 0:00:19]} h5 {[%emt 0:00:21]} 48. Ne3 {[%emt 0:00:11]} Ne6 {[%emt 0:00:10]} 49. Nd5 {[%emt 0:00:10]} Nd4 {[%emt 0:00:12]} 50. Qb1 {[%emt 0:00:10]} c6 {[%emt 0:00:10]} 51. Ne3 {[%emt 0:00:10]} Qe7 {[%emt 0:00:11]} 52. Kh3 {[%emt 0:00:11]} Qd7+ {[%emt 0:00:09]} 53. Kh2 {[%emt 0:00:09]} Qe7 {[%emt 0:00:09]} 54. Rd3 {[%emt 0:00:11]} f5 {[%emt 0:00:12]} 55. Nxf5 {[%emt 0:00:10]} Nxf5 {[%emt 0:00:09]} 56. exf5 {[%emt 0:00:10]} Qxh4+ {[%emt 0:00:09]} 57. Kg1 {[%emt 0:00:08]} Rxd3 {[%emt 0:00:10]} 58. Qxd3 {[%emt 0:00:09]} Qe1+ {[%emt 0:00:09]} 59. Kh2 {[%emt 0:00:09]} Qh4+ {[%emt 0:00:09]} 60. Kg1 {[%emt 0:00:09]} Qe1+ {[%emt 0:00:08]} 61. Kh2 {[%emt 0:00:11]} Qh4+ {[%emt 0:00:09]} 62. Kg1 {[%emt 0:00:10]} Qe1+ {[%emt 0:00:08]} 63. Kh2 {[%emt 0:00:13]} 1/2-1/2

[Event "EUCC Open Blitz 2024"]
[Site "Miskolc"]
[Date "2024.07.13"]
[Round "2.3"]
[White "Safar, Sandro"]
[Black "Isik, Alparslan"]
[Result "0-1"]
[ECO "B23"]
[WhiteElo "2220"]
[BlackElo "2469"]
[PlyCount "126"]
[EventDate "2024.07.08"]
[EventType "team-tourn"]
[EventCountry "HUN"]
[TimeControl "1500+10"]

1. e4 {[%emt 0:22:17]} c5 {[%emt 0:22:18]} 2. Nc3 {[%emt 0:00:09]} Nc6 {[%emt 0:00:09]} 3. f4 {[%emt 0:00:10]} g6 {[%emt 0:00:09]} 4. Nf3 {[%emt 0:00:10]} Bg7 {[%emt 0:00:09]} 5. d3 {[%emt 0:00:10]} e6 {[%emt 0:00:11]} 6. g3 {[%emt 0:00:09]} Nge7 {[%emt 0:00:10]} 7. Bg2 {[%emt 0:00:09]} O-O {[%emt 0:00:10]} 8. O-O {[%emt 0:00:10]} d6 {[%emt 0:00:09]} 9. Ne2 {[%emt 0:00:18]} b5 {[%emt 0:00:12]} 10. c3 {[%emt 0:00:09]} b4 {[%emt 0:00:10]} 11. d4 {[%emt 0:00:09]} bxc3 {[%emt 0:00:33]} 12. bxc3 {[%emt 0:00:10]} cxd4 {[%emt 0:00:09]} 13. cxd4 Ba6 {[%emt 0:00:10]} 14. Be3 {[%emt 0:00:28]} Qa5 {[%emt 0:00:18]} 15. e5 {[%emt 0:00:26]} dxe5 {[%emt 0:00:27]} 16. Nxe5 {[%emt 0:00:27]} Nxe5 {[%emt 0:00:25]} 17. Bxa8 {[%emt 0:00:20]} Nc4 {[%emt 0:00:10]} 18. Qe1 {[%emt 0:00:51]} Qxe1 {[%emt 0:00:18]} 19. Rfxe1 {[%emt 0:00:10]} Rxa8 {[%emt 0:00:10]} 20. Bf2 {[%emt 0:00:13]} Nd2 {[%emt 0:00:15]} 21. Kg2 {[%emt 0:00:21]} Ne4 {[%emt 0:00:41]} 22. Bg1 {[%emt 0:00:40]} Rb8 {[%emt 0:00:11]} 23. Nc1 {[%emt 0:00:47]} Rb2+ {[%emt 0:00:14]} 24. Kh3 {[%emt 0:00:10]} Nf2+ {[%emt 0:00:27]} 25. Bxf2 {[%emt 0:00:12]} Rxf2 {[%emt 0:00:10]} 26. Nb3 {[%emt 0:00:11]} Nf5 {[%emt 0:00:11]} 27. Rac1 {[%emt 0:00:11]} Bb7 {[%emt 0:00:14]} 28. Rg1 {[%emt 0:00:10]} h5 {[%emt 0:00:18]} 29. Rc3 {[%emt 0:00:10]} Bd5 {[%emt 0:00:14]} 30. g4 {[%emt 0:00:09]} hxg4+ {[%emt 0:00:11]} 31. Rxg4 {[%emt 0:00:11]} Bf6 {[%emt 0:00:14]} 32. Rg1 {[%emt 0:00:10]} Kg7 {[%emt 0:00:09]} 33. Rd3 {[%emt 0:00:10]} Be4 {[%emt 0:00:13]} 34. Rc3 {[%emt 0:00:10]} Rxa2 {[%emt 0:00:13]} 35. Nc5 {[%emt 0:00:09]} Bxd4 {[%emt 0:00:11]} 36. Nxe4 {[%emt 0:00:11]} Bxg1 {[%emt 0:00:11]} 37. Rc7 {[%emt 0:00:10]} Rxh2+ 38. Kg4 Rh4+ {[%emt 0:00:27]} 39. Kf3 {[%emt 0:00:17]} Bb6 {[%emt 0:00:16]} 40. Rd7 {[%emt 0:00:11]} Rh5 {[%emt 0:00:13]} 41. Kg4 {[%emt 0:00:12]} Nh6+ {[%emt 0:00:10]} 42. Kf3 {[%emt 0:00:09]} Rf5 {[%emt 0:00:10]} 43. Nd6 {[%emt 0:00:10]} Kf8 {[%emt 0:00:13]} 44. Nc8 {[%emt 0:00:10]} g5 {[%emt 0:00:10]} 45. Rb7 {[%emt 0:00:10]} Rxf4+ {[%emt 0:00:10]} 46. Kg3 {[%emt 0:00:09]} Nf5+ {[%emt 0:00:09]} 47. Kg2 {[%emt 0:00:09]} g4 {[%emt 0:00:11]} 48. Rb8 {[%emt 0:00:12]} Kg7 {[%emt 0:00:09]} 49. Nxb6 {[%emt 0:00:10]} axb6 {[%emt 0:00:09]} 50. Rxb6 {[%emt 0:00:08]} Rf3 {[%emt 0:00:10]} 51. Rb4 {[%emt 0:00:10]} Kf6 {[%emt 0:00:10]} 52. Ra4 {[%emt 0:00:11]} Nh4+ {[%emt 0:00:11]} 53. Kh2 {[%emt 0:00:09]} Kg5 {[%emt 0:00:09]} 54. Ra8 {[%emt 0:00:10]} Rf2+ {[%emt 0:00:09]} 55. Kg1 {[%emt 0:00:10]} Rb2 {[%emt 0:00:10]} 56. Kh1 {[%emt 0:00:09]} f5 {[%emt 0:00:10]} 57. Rh8 {[%emt 0:00:12]} Kf4 {[%emt 0:00:11]} 58. Ra8 {[%emt 0:00:12]} e5 {[%emt 0:00:07]} 59. Ra3 {[%emt 0:00:07]} e4 {[%emt 0:00:11]} 60. Kg1 {[%emt 0:00:11]} g3 {[%emt 0:00:10]} 61. Kf1 {[%emt 0:00:12]} Rf2+ {[%emt 0:00:11]} 62. Ke1 {[%emt 0:00:10]} Nf3+ {[%emt 0:00:10]} 63. Kd1 {[%emt 0:00:09]} g2 {[%emt 0:00:09]} 0-1

[Event "EUCC Open Blitz 2024"]
[Site "Miskolc"]
[Date "2024.07.13"]
[Round "2.4"]
[White "Kamer, Kayra"]
[Black "Tomulic, Teo"]
[Result "1/2-1/2"]
[ECO "B92"]
[WhiteElo "2316"]
[BlackElo "2346"]
[PlyCount "185"]
[EventDate "2024.07.08"]
[EventType "team-tourn"]
[EventCountry "HUN"]
[TimeControl "1500+10"]

1. e4 {[%emt 0:22:19]} c5 {[%emt 0:22:17]} 2. Nf3 {[%emt 0:00:09]} d6 {[%emt 0:00:09]} 3. d4 {[%emt 0:00:08]} Nf6 {[%emt 0:00:08]} 4. Nc3 {[%emt 0:00:11]} cxd4 {[%emt 0:00:09]} 5. Nxd4 {[%emt 0:00:09]} a6 {[%emt 0:00:09]} 6. Be2 {[%emt 0:00:09]} e5 {[%emt 0:00:11]} 7. Nb3 {[%emt 0:00:09]} Be7 {[%emt 0:00:09]} 8. Be3 {[%emt 0:00:10]} Be6 {[%emt 0:00:23]} 9. Nd5 {[%emt 0:00:09]} Nxd5 {[%emt 0:00:13]} 10. exd5 {[%emt 0:00:10]} Bf5 {[%emt 0:00:25]} 11. Qd2 {[%emt 0:00:12]} Nd7 {[%emt 0:00:15]} 12. c4 {[%emt 0:00:12]} Rc8 {[%emt 0:00:15]} 13. Na5 {[%emt 0:00:21]} Qc7 {[%emt 0:00:21]} 14. b4 {[%emt 0:00:17]} O-O {[%emt 0:00:20]} 15. O-O {[%emt 0:00:10]} Bg6 {[%emt 0:00:46]} 16. Rac1 {[%emt 0:00:14]} Qb8 {[%emt 0:00:22]} 17. f4 {[%emt 0:00:23]} exf4 {[%emt 0:01:12]} 18. Bxf4 {[%emt 0:00:10]} Ne5 {[%emt 0:00:08]} 19. Nb3 {[%emt 0:00:33]} Rfd8 {[%emt 0:00:13]} 20. Kh1 {[%emt 0:00:30]} Bf6 {[%emt 0:00:09]} 21. c5 {[%emt 0:00:30]} Qc7 {[%emt 0:00:16]} 22. Bxe5 {[%emt 0:01:00]} Bxe5 {[%emt 0:00:12]} 23. Bg4 {[%emt 0:00:09]} Rb8 {[%emt 0:00:10]} 24. Bf3 {[%emt 0:00:19]} Qe7 {[%emt 0:00:13]} 25. c6 {[%emt 0:00:16]} bxc6 {[%emt 0:00:12]} 26. dxc6 {[%emt 0:00:09]} Rbc8 {[%emt 0:00:09]} 27. Bd5 {[%emt 0:00:10]} Qh4 {[%emt 0:00:09]} 28. g3 {[%emt 0:00:20]} Be4+ {[%emt 0:00:09]} 29. Bxe4 {[%emt 0:00:10]} Qxe4+ {[%emt 0:00:08]} 30. Qg2 {[%emt 0:00:10]} Qxb4 {[%emt 0:00:09]} 31. Qd5 {[%emt 0:00:12]} Rf8 {[%emt 0:00:11]} 32. Rf2 {[%emt 0:00:14]} Rc7 {[%emt 0:00:10]} 33. Rfc2 {[%emt 0:00:10]} h5 {[%emt 0:00:11]} 34. Rc4 {[%emt 0:00:09]} Qa3 {[%emt 0:00:11]} 35. Qd2 {[%emt 0:00:12]} g6 {[%emt 0:00:10]} 36. Qd5 {[%emt 0:00:10]} Qxa2 {[%emt 0:00:09]} 37. Nd4 {[%emt 0:00:11]} Qd2 {[%emt 0:00:11]} 38. R1c2 {[%emt 0:00:11]} Qe1+ {[%emt 0:00:10]} 39. Kg2 {[%emt 0:00:09]} Rb8 {[%emt 0:00:11]} 40. Nf3 {[%emt 0:00:09]} Qe3 {[%emt 0:00:11]} 41. Re4 {[%emt 0:00:09]} Qb3 {[%emt 0:00:10]} 42. Qxb3 {[%emt 0:00:10]} Rxb3 {[%emt 0:00:08]} 43. Nxe5 {[%emt 0:00:09]} dxe5 {[%emt 0:00:09]} 44. Rxe5 {[%emt 0:00:10]} Rb6 {[%emt 0:00:09]} 45. Rec5 {[%emt 0:00:09]} Kg7 {[%emt 0:00:10]} 46. Kf3 {[%emt 0:00:09]} Kf6 {[%emt 0:00:09]} 47. Ke4 {[%emt 0:00:13]} Ke6 {[%emt 0:00:08]} 48. R2c4 {[%emt 0:00:10]} Kd6 {[%emt 0:00:13]} 49. Rd5+ {[%emt 0:00:09]} Ke6 {[%emt 0:00:09]} 50. Re5+ {[%emt 0:00:09]} Kf6 {[%emt 0:00:09]} 51. Rec5 {[%emt 0:00:08]} a5 {[%emt 0:00:11]} 52. h3 {[%emt 0:00:15]} a4 {[%emt 0:00:10]} 53. Rxa4 {[%emt 0:00:10]} Rbxc6 {[%emt 0:00:09]} 54. Rxc6+ {[%emt 0:00:09]} Rxc6 {[%emt 0:00:08]} 55. Kf3 {[%emt 0:00:11]} Rc3+ {[%emt 0:00:10]} 56. Kg2 {[%emt 0:00:09]} Rc5 {[%emt 0:00:12]} 57. Rb4 {[%emt 0:00:09]} Ke5 {[%emt 0:00:11]} 58. Rb6 {[%emt 0:00:11]} f6 {[%emt 0:00:13]} 59. Ra6 {[%emt 0:00:09]} Rc2+ {[%emt 0:00:11]} 60. Kf3 {[%emt 0:00:10]} Rc3+ {[%emt 0:00:09]} 61. Kg2 {[%emt 0:00:08]} Kf5 {[%emt 0:00:09]} 62. Ra5+ {[%emt 0:00:10]} Ke4 {[%emt 0:00:13]} 63. Ra4+ {[%emt 0:00:09]} Ke3 {[%emt 0:00:09]} 64. Rf4 {[%emt 0:00:10]} Rc2+ {[%emt 0:00:10]} 65. Kg1 {[%emt 0:00:09]} Rc1+ {[%emt 0:00:09]} 66. Kg2 {[%emt 0:00:09]} Rc2+ {[%emt 0:00:08]} 67. Kg1 {[%emt 0:00:08]} Rc6 {[%emt 0:00:10]} 68. Kg2 {[%emt 0:00:10]} g5 {[%emt 0:00:10]} 69. Rf3+ {[%emt 0:00:09]} Ke4 {[%emt 0:00:10]} 70. Rf2 {[%emt 0:00:10]} Kd3 {[%emt 0:00:13]} 71. Rf3+ {[%emt 0:00:10]} Ke4 {[%emt 0:00:09]} 72. Rf2 {[%emt 0:00:08]} f5 {[%emt 0:00:11]} 73. Re2+ {[%emt 0:00:10]} Kd4 {[%emt 0:00:10]} 74. Re8 {[%emt 0:00:13]} Rc2+ {[%emt 0:00:10]} 75. Kf3 {[%emt 0:00:10]} Rc3+ {[%emt 0:00:09]} 76. Kf2 {[%emt 0:00:09]} Rc2+ {[%emt 0:00:13]} 77. Kf3 {[%emt 0:00:19]} g4+ {[%emt 0:00:08]} 78. hxg4 {[%emt 0:00:09]} hxg4+ {[%emt 0:00:09]} 79. Kf4 {[%emt 0:00:09]} Rf2+ {[%emt 0:00:08]} 80. Kg5 {[%emt 0:00:09]} Rf3 {[%emt 0:00:12]} 81. Kh4 {[%emt 0:00:09]} Re3 {[%emt 0:00:10]} 82. Rf8 {[%emt 0:00:10]} Ke4 {[%emt 0:00:09]} 83. Re8+ {[%emt 0:00:09]} Kf3 {[%emt 0:00:09]} 84. Ra8 {[%emt 0:00:11]} Rb3 {[%emt 0:00:13]} 85. Ra5 {[%emt 0:00:11]} Kg2 {[%emt 0:00:12]} 86. Rxf5 {[%emt 0:00:13]} Rxg3 {[%emt 0:00:09]} 87. Rf4 {[%emt 0:00:09]} Rh3+ {[%emt 0:00:11]} 88. Kxg4 {[%emt 0:00:09]} Rh8 {[%emt 0:00:08]} 89. Kf5 {[%emt 0:00:09]} Rf8+ {[%emt 0:00:09]} 90. Ke5 {[%emt 0:00:09]} Re8+ {[%emt 0:00:09]} 91. Kd4 {[%emt 0:00:09]} Rd8+ {[%emt 0:00:08]} 92. Kc3 {[%emt 0:00:08]} Kg3 {[%emt 0:00:10]} 93. Rc4 {[%emt 0:00:09]} 1/2-1/2

[Event "EUCC Open Blitz 2024"]
[Site "Miskolc"]
[Date "2024.07.13"]
[Round "2.5"]
[White "Papp, Levente"]
[Black "Vardanyan, Aras"]
[Result "0-1"]
[ECO "A36"]
[WhiteElo "2359"]
[BlackElo "2312"]
[PlyCount "104"]
[EventDate "2024.07.08"]
[EventType "team-tourn"]
[EventCountry "HUN"]
[TimeControl "1500+10"]

1. c4 {[%emt 0:22:18]} g6 {[%emt 0:22:16]} 2. g3 {[%emt 0:00:09]} Bg7 {[%emt 0:00:09]} 3. Bg2 {[%emt 0:00:09]} c5 {[%emt 0:00:11]} 4. Nc3 {[%emt 0:00:11]} Nc6 {[%emt 0:00:09]} 5. e4 {[%emt 0:00:10]} Nf6 {[%emt 0:00:13]} 6. Nge2 {[%emt 0:00:09]} O-O {[%emt 0:00:11]} 7. O-O {[%emt 0:00:10]} d6 {[%emt 0:00:09]} 8. d3 {[%emt 0:00:09]} Rb8 {[%emt 0:00:09]} 9. Rb1 {[%emt 0:00:09]} a6 {[%emt 0:00:09]} 10. a3 {[%emt 0:00:09]} Bg4 {[%emt 0:00:15]} 11. b4 {[%emt 0:00:22]} Bxe2 {[%emt 0:00:25]} 12. Nxe2 {[%emt 0:00:14]} b5 {[%emt 0:00:09]} 13. cxb5 {[%emt 0:00:27]} axb5 {[%emt 0:00:11]} 14. Be3 {[%emt 0:00:14]} Ng4 {[%emt 0:00:13]} 15. Bd2 {[%emt 0:00:11]} Nge5 {[%emt 0:00:13]} 16. Be3 {[%emt 0:00:13]} c4 {[%emt 0:00:12]} 17. d4 {[%emt 0:00:23]} Nd3 {[%emt 0:00:10]} 18. e5 {[%emt 0:01:02]} Qd7 {[%emt 0:00:25]} 19. f4 {[%emt 0:00:34]} dxe5 {[%emt 0:00:09]} 20. fxe5 {[%emt 0:00:10]} e6 {[%emt 0:00:22]} 21. Be4 {[%emt 0:00:09]} Ra8 {[%emt 0:00:12]} 22. Ra1 {[%emt 0:00:09]} Ra6 {[%emt 0:00:16]} 23. Qc2 {[%emt 0:00:17]} Rfa8 {[%emt 0:00:17]} 24. Qc3 {[%emt 0:00:11]} R8a7 {[%emt 0:00:16]} 25. Bxd3 {[%emt 0:00:16]} cxd3 {[%emt 0:00:10]} 26. Nf4 {[%emt 0:00:09]} Ne7 {[%emt 0:00:26]} 27. Qxd3 {[%emt 0:00:26]} Nd5 {[%emt 0:00:12]} 28. Bd2 {[%emt 0:00:17]} Nxf4 {[%emt 0:00:16]} 29. Bxf4 {[%emt 0:00:09]} Qd5 {[%emt 0:00:11]} 30. Rfc1 {[%emt 0:00:11]} Bf8 {[%emt 0:00:10]} 31. Rc8 {[%emt 0:00:09]} Ra8 {[%emt 0:00:12]} 32. Rc7 {[%emt 0:00:14]} Rd8 {[%emt 0:00:14]} 33. Rf1 {[%emt 0:00:13]} Rd7 {[%emt 0:00:14]} 34. Rc8 {[%emt 0:00:14]} Rd8 {[%emt 0:00:09]} 35. Rc7 {[%emt 0:00:09]} Rd7 {[%emt 0:00:10]} 36. Rxd7 {[%emt 0:00:10]} Qxd7 {[%emt 0:00:09]} 37. Bc1 {[%emt 0:00:10]} Ra8 {[%emt 0:00:13]} 38. Rd1 {[%emt 0:00:13]} Rc8 {[%emt 0:00:11]} 39. Bb2 {[%emt 0:00:11]} Qd5 {[%emt 0:00:09]} 40. Rf1 {[%emt 0:00:11]} Bg7 {[%emt 0:00:10]} 41. Qf3 {[%emt 0:00:10]} Qd7 {[%emt 0:00:14]} 42. Qd3 {[%emt 0:00:12]} Bxe5 {[%emt 0:00:11]} 43. Qe3 {[%emt 0:00:12]} Bg7 {[%emt 0:00:11]} 44. Qf3 {[%emt 0:00:10]} h5 {[%emt 0:00:10]} 45. Qe4 {[%emt 0:00:10]} Rc4 {[%emt 0:00:12]} 46. Qa8+ {[%emt 0:00:09]} Kh7 {[%emt 0:00:10]} 47. Kh1 {[%emt 0:00:13]} Bxd4 {[%emt 0:00:25]} 48. Bxd4 {[%emt 0:00:08]} Rxd4 {[%emt 0:00:09]} 49. Qf8 {[%emt 0:00:09]} f5 {[%emt 0:00:09]} 50. Qc5 {[%emt 0:00:12]} Qd5+ {[%emt 0:00:09]} 51. Qxd5 {[%emt 0:00:10]} Rxd5 {[%emt 0:00:09]} 52. Rc1 {[%emt 0:00:10]} Rd3 {[%emt 0:00:12]} 0-1

[Event "EUCC Open Blitz 2024"]
[Site "Miskolc"]
[Date "2024.07.13"]
[Round "2.6"]
[White "Stauskas, Lukas"]
[Black "Fodor, Balazs"]
[Result "1-0"]
[ECO "A01"]
[WhiteElo "2362"]
[BlackElo "2247"]
[PlyCount "129"]
[EventDate "2024.07.08"]
[EventType "team-tourn"]
[EventCountry "HUN"]
[TimeControl "1500+10"]

1. b3 {[%emt 0:22:18]} Nf6 {[%emt 0:22:17]} 2. Bb2 {[%emt 0:00:09]} g6 {[%emt 0:00:09]} 3. Bxf6 {[%emt 0:00:10]} exf6 {[%emt 0:00:09]} 4. c4 {[%emt 0:00:09]} f5 {[%emt 0:00:09]} 5. Nc3 {[%emt 0:00:08]} Bg7 {[%emt 0:00:09]} 6. g3 {[%emt 0:00:09]} O-O {[%emt 0:00:09]} 7. Bg2 {[%emt 0:00:09]} d6 {[%emt 0:00:10]} 8. e3 {[%emt 0:00:09]} c6 {[%emt 0:00:18]} 9. Nge2 {[%emt 0:00:09]} Qe7 {[%emt 0:00:18]} 10. d4 {[%emt 0:00:10]} Nd7 {[%emt 0:00:10]} 11. O-O {[%emt 0:00:12]} Nf6 {[%emt 0:00:10]} 12. Qd3 {[%emt 0:00:09]} Re8 {[%emt 0:00:10]} 13. Rab1 {[%emt 0:00:09]} a5 {[%emt 0:00:16]} 14. a3 {[%emt 0:00:09]} h5 {[%emt 0:00:12]} 15. h4 {[%emt 0:00:09]} Ne4 {[%emt 0:00:15]} 16. b4 {[%emt 0:00:17]} axb4 {[%emt 0:00:13]} 17. axb4 {[%emt 0:00:10]} Bh6 {[%emt 0:00:37]} 18. Rb3 {[%emt 0:01:02]} Bd7 {[%emt 0:00:13]} 19. b5 {[%emt 0:00:11]} c5 {[%emt 0:00:10]} 20. Nd5 {[%emt 0:00:12]} Qd8 {[%emt 0:00:14]} 21. Nef4 {[%emt 0:00:15]} Bxf4 {[%emt 0:00:11]} 22. Nxf4 {[%emt 0:00:09]} Be6 {[%emt 0:00:42]} 23. Qc2 {[%emt 0:00:27]} Qa5 {[%emt 0:00:15]} 24. Bxe4 {[%emt 0:00:28]} fxe4 {[%emt 0:00:09]} 25. Nxe6 {[%emt 0:00:22]} Rxe6 {[%emt 0:00:10]} 26. dxc5 {[%emt 0:00:10]} dxc5 {[%emt 0:00:11]} 27. Rd1 {[%emt 0:00:08]} b6 {[%emt 0:00:13]} 28. Qb2 {[%emt 0:00:26]} Qa2 {[%emt 0:00:14]} 29. Rd8+ {[%emt 0:00:11]} Rxd8 {[%emt 0:00:25]} 30. Qxa2 {[%emt 0:00:09]} Kh7 {[%emt 0:00:21]} 31. Qa7 {[%emt 0:00:18]} Kg7 {[%emt 0:00:10]} 32. Qb7 {[%emt 0:00:16]} Rd1+ {[%emt 0:00:12]} 33. Kg2 {[%emt 0:00:10]} Rd2 {[%emt 0:00:09]} 34. Rb1 {[%emt 0:00:19]} Rf6 {[%emt 0:00:11]} 35. Rf1 {[%emt 0:00:09]} Re6 {[%emt 0:00:09]} 36. Kg1 {[%emt 0:00:14]} Rc2 {[%emt 0:00:24]} 37. Qd5 {[%emt 0:00:10]} Kh7 {[%emt 0:00:13]} 38. Ra1 {[%emt 0:00:27]} Rf6 {[%emt 0:00:14]} 39. Rf1 {[%emt 0:00:13]} Re6 {[%emt 0:00:08]} 40. Rd1 {[%emt 0:00:11]} Rf6 {[%emt 0:00:10]} 41. Rd2 {[%emt 0:00:09]} Rc1+ {[%emt 0:00:11]} 42. Kg2 {[%emt 0:00:08]} Re6 {[%emt 0:00:10]} 43. Qd7 {[%emt 0:00:15]} Kg7 {[%emt 0:00:10]} 44. Rd6 {[%emt 0:00:10]} Re5 {[%emt 0:00:23]} 45. Rd5 {[%emt 0:00:10]} Re6 {[%emt 0:00:09]} 46. Rd6 {[%emt 0:00:14]} Re5 {[%emt 0:00:09]} 47. Rxb6 {[%emt 0:00:09]} Rf5 {[%emt 0:00:09]} 48. Qd2 {[%emt 0:00:15]} Rxc4 {[%emt 0:00:11]} 49. Rd6 {[%emt 0:00:11]} Rb4 {[%emt 0:00:10]} 50. b6 {[%emt 0:00:11]} Rb5 {[%emt 0:00:18]} 51. Rd5 {[%emt 0:00:11]} c4 {[%emt 0:00:11]} 52. Rxf5 {[%emt 0:00:11]} gxf5 {[%emt 0:00:12]} 53. Qd4+ {[%emt 0:00:09]} Kg6 {[%emt 0:00:10]} 54. Qd6+ {[%emt 0:00:09]} f6 {[%emt 0:00:10]} 55. Qc6 {[%emt 0:00:09]} Rb2 {[%emt 0:00:12]} 56. b7 {[%emt 0:00:09]} c3 {[%emt 0:00:11]} 57. Qc8 {[%emt 0:00:11]} c2 {[%emt 0:00:11]} 58. Qxc2 {[%emt 0:00:12]} Rxb7 {[%emt 0:00:09]} 59. Qc8 {[%emt 0:00:10]} Rg7 {[%emt 0:00:11]} 60. Qe8+ {[%emt 0:00:10]} Kh6 {[%emt 0:00:09]} 61. Qf8 {[%emt 0:00:09]} Kg6 {[%emt 0:00:09]} 62. Kf1 {[%emt 0:00:10]} Rf7 {[%emt 0:00:09]} 63. Qe8 {[%emt 0:00:09]} Kg7 {[%emt 0:00:09]} 64. Ke2 {[%emt 0:00:10]} Rc7 {[%emt 0:00:10]} 65. Qxh5 {[%emt 0:00:09]} 1-0

[Event "EUCC Open Blitz 2024"]
[Site "Miskolc"]
[Date "2024.07.13"]
[Round "2.7"]
[White "Kruckenhauser, Arthur"]
[Black "Spanjer, Joris"]
[Result "1-0"]
[ECO "C47"]
[WhiteElo "2340"]
[BlackElo "1855"]
[PlyCount "53"]
[EventDate "2024.07.08"]
[EventType "team-tourn"]
[EventCountry "HUN"]
[TimeControl "1500+10"]

1. e4 {[%emt 0:22:17]} e5 {[%emt 0:22:17]} 2. Nf3 {[%emt 0:00:09]} Nc6 {[%emt 0:00:09]} 3. Nc3 {[%emt 0:00:10]} Nf6 {[%emt 0:00:10]} 4. a3 {[%emt 0:00:08]} d6 {[%emt 0:00:10]} 5. d4 {[%emt 0:00:10]} exd4 {[%emt 0:00:11]} 6. Nxd4 {[%emt 0:00:08]} Be7 {[%emt 0:00:12]} 7. Nxc6 {[%emt 0:00:10]} bxc6 {[%emt 0:00:09]} 8. Bd3 {[%emt 0:00:09]} O-O {[%emt 0:00:14]} 9. O-O {[%emt 0:00:10]} Bg4 {[%emt 0:00:16]} 10. Qe1 {[%emt 0:00:09]} Bh5 {[%emt 0:00:20]} 11. h3 {[%emt 0:00:09]} Nd7 {[%emt 0:00:26]} 12. f4 {[%emt 0:00:26]} h6 {[%emt 0:00:28]} 13. Be3 {[%emt 0:00:15]} Bf6 {[%emt 0:00:20]} 14. Rb1 {[%emt 0:00:09]} Re8 {[%emt 0:00:21]} 15. Qf2 {[%emt 0:00:10]} Bg6 {[%emt 0:00:14]} 16. Rfe1 {[%emt 0:00:32]} Nb6 {[%emt 0:00:21]} 17. Qf3 {[%emt 0:00:33]} c5 {[%emt 0:00:18]} 18. Bf2 {[%emt 0:00:19]} Bd4 {[%emt 0:00:28]} 19. Bb5 {[%emt 0:00:27]} Re7 {[%emt 0:00:17]} 20. Bc6 {[%emt 0:00:12]} Rb8 {[%emt 0:00:09]} 21. Bxd4 {[%emt 0:00:25]} cxd4 {[%emt 0:00:08]} 22. Nb5 {[%emt 0:00:08]} f5 {[%emt 0:00:18]} 23. exf5 {[%emt 0:00:18]} Bxf5 {[%emt 0:00:09]} 24. Nxd4 {[%emt 0:00:09]} Bd7 {[%emt 0:00:13]} 25. Bxd7 {[%emt 0:00:13]} Qxd7 {[%emt 0:00:09]} 26. Rxe7 {[%emt 0:00:11]} Qxe7 {[%emt 0:00:10]} 27. Nc6 {[%emt 0:00:09]} 1-0

[Event "EUCC Open Blitz 2024"]
[Site "Miskolc"]
[Date "2024.07.13"]
[Round "2.9"]
[White "Jellema, Pieter"]
[Black "Muha, Miljenko"]
[Result "0-1"]
[ECO "D02"]
[WhiteElo "2006"]
[BlackElo "2245"]
[PlyCount "114"]
[EventDate "2024.07.08"]
[EventType "team-tourn"]
[EventCountry "HUN"]
[TimeControl "1500+10"]

1. d4 d5 2. Nf3 Nf6 3. Bf4 e6 4. e3 Bd6 5. Nbd2 c5 6. Bg3 O-O 7. c3 b6 8. Ne5 Bb7 9. Bd3 Qc7 10. O-O Ne4 11. Nxe4 dxe4 12. Bc2 f6 13. Nc4 Bxg3 14. hxg3 Nd7 15. Nd2 f5 16. g4 Kh8 17. a4 Rad8 18. g5 e5 19. Qh5 exd4 20. exd4 cxd4 21. Rfe1 d3 22. Bb3 Ne5 23. Re3 g6 24. Qh4 Qe7 25. a5 h5 26. axb6 axb6 27. Qf4 Nf7 28. Ra7 Qd6 29. Qh4 Rd7 30. Bd1 Ra8 31. Rxa8+ Bxa8 32. Bxh5 gxh5 33. Qxh5+ Kg8 34. g6 Ne5 35. Rh3 Nxg6 36. Rg3 Rg7 37. Nc4 Qf6 38. Rg5 Ne7 39. Rxg7+ Kxg7 40. Ne3 Bc6 41. Qh3 Bd7 42. Qh5 Qg6 43. Qh2 Qf6 44. Qg3+ Kf7 45. Qc7 Qc6 46. Qd8 b5 47. Qh8 Qf6 48. Qh7+ Qg7 49. Qh5+ Qg6 50. Qh2 Qg5 51. Qd6 f4 52. Nf1 Be6 53. Qb6 Qd5 54. Nd2 Qc6 55. Qb8 e3 56. Qxf4+ Nf5 57. fxe3 Ke7 0-1